bitfinex-derivatives/quotes_ETHF0:USTF0_20250427
["timestamp","ask_amount","ask_price","bid_price","bid_amount"]
[1745759634266,10.29081306,1794.1,1794.0,52.3938]
[1745759637159,8.45868621,1794.1,1794.0,52.3938]
[1745759639672,7.34428621,1794.1,1794.0,52.3938]
[1745759639969,8.45868621,1794.1,1794.0,52.3938]
[1745759640270,7.34428621,1794.1,1794.0,53.50827]
[1745759640463,1.11439,1794.2,1794.0,53.50827]
[1745759640663,1.11439,1794.2,1794.1,9.3292]
[1745759640963,12.08111951,1794.5,1794.1,9.3292]
[1745759641169,1.11422,1794.4,1794.2,4.7474]
[1745759641371,10.96690951,1794.5,1794.3,12.537]
[1745759641570,1.11422,1794.4,1794.3,12.537]
[1745759641771,1.11434,1794.2,1794.1,3.2078]
[1745759641972,1.11434,1794.2,1794.1,12.6608]
[1745759645688,1.11432,1794.3,1794.1,12.6608]
[1745759645884,1.11432,1794.3,1794.2,8.8276]
[1745759648397,13.89713857,1794.3,1794.2,8.8276]
[1745759649186,13.89713857,1794.3,1794.2,12.5496]
[1745759650085,13.89713857,1794.3,1794.2,8.8276]
[1745759650279,1.11434,1794.2,1794.1,3.4864]
[1745759650479,9.88684,1794.2,1794.1,3.4864]
[1745759652591,14.66614,1794.2,1794.1,3.4864]
[1745759653387,14.66614,1794.2,1794.1,12.1992]
[1745759657590,14.66614,1794.2,1794.1,3.4864]
[1745759659786,14.66614,1794.2,1794.1,0.2786]
[1745759659989,19.39454,1794.2,1794.1,0.2786]
[1745759661483,1.11453,1793.9,1793.8,3.2078]
[1745759661678,1.11459,1793.8,1793.7,4.442]
[1745759661882,11.8722,1793.8,1793.5,9.1617]
[1745759662090,1.11471,1793.6,1793.5,9.1617]
[1745759662285,1.11478,1793.5,1793.4,4.442]
[1745759662491,10.20048,1793.5,1793.4,45.242]
[1745759663791,10.20048,1793.5,1793.4,40.8]
[1745759664885,1.11478,1793.5,1793.4,40.8]
[1745759665085,1.11478,1793.5,1793.4,44.522]
[1745759665981,1.11478,1793.5,1793.4,53.4422]
[1745759667290,1.11478,1793.5,1793.4,58.4422]
[1745759667291,11.05522911,1793.5,1793.4,58.4422]
[1745759667484,12.17000911,1793.5,1793.4,58.4422]
[1745759668598,12.17000911,1793.5,1793.4,53.4422]
[1745759671797,10.31933436,1793.5,1793.4,53.4422]
[1745759675997,10.31933436,1793.5,1793.4,44.522]
[1745759676199,10.31933436,1793.5,1793.4,40.8]
[1745759677395,10.31933436,1793.5,1793.4,49.9543]
[1745759680399,10.31933436,1793.5,1793.4,40.8]
[1745759680600,1.1149,1793.3,1793.2,13.0983]
[1745759681200,1.1149,1793.3,1793.2,3.722]
[1745759681395,4.42039047,1793.3,1793.2,3.722]
[1745759681595,9.42039047,1793.3,1793.2,0.89235]
[1745759681799,1.11515,1792.9,1792.8,4.259]
[1745759682301,1.11515,1792.9,1792.8,48.781]
[1745759683702,9.32295,1792.9,1792.8,44.522]
[1745759683902,9.42062521,1792.9,1792.8,44.522]
[1745759684201,9.42062521,1792.9,1792.8,40.8]
[1745759684390,4.42062521,1792.9,1792.8,40.8]
[1745759685101,1.21282521,1792.9,1792.8,44.522]
[1745759685304,1.11515,1792.9,1792.8,44.522]
[1745759685604,1.11515,1792.9,1792.8,47.7298]
[1745759685902,1.11515,1792.9,1792.8,51.9888]
[1745759686092,1.11515,1792.9,1792.8,56.7567]
[1745759686702,1.11513,1793.0,1792.8,56.7567]
[1745759686893,1.11513,1793.0,1792.9,14.4399]
[1745759688103,1.11513,1793.0,1792.9,18.1619]
[1745759697607,4.9206,1793.4,1792.9,18.1619]
[1745759697608,0.68693732,1794.1,1792.9,30.52103376]
[1745759697808,17.50300943,1794.5,1794.4,1.11422]
[1745759697998,19.3142,1795.7,1794.4,66.856]
[1745759697999,3.2078,1795.6,1794.4,66.856]
[1745759698204,0.3896149,1795.6,1794.6,4.32189]
[1745759698407,9.5011,1795.5,1794.6,4.32189]
[1745759698610,1.1138,1795.1,1794.6,4.32189]
[1745759698914,1.11379,1795.1,1794.6,45.53477006]
[1745759699510,1.11394,1794.9,1794.6,44.42068006]
[1745759699807,9.6757,1795.0,1794.6,44.42068006]
[1745759700010,1.11396,1794.9,1794.6,44.42068006]
[1745759700213,1.11397,1794.8,1794.6,44.42068006]
[1745759700409,1.11397,1794.8,1794.7,0.41288006]
[1745759701014,1.11397,1794.8,1794.7,41.21288006]
[1745759701218,1.11397,1794.8,1794.7,44.93488006]
[1745759701516,1.11397,1794.8,1794.7,44.94093332]
[1745759701717,1.11397,1794.8,1794.7,44.522]
[1745759701919,9.6757,1795.0,1794.7,44.94047903]
[1745759702113,1.11391,1794.9,1794.8,3.2078]
[1745759703215,1.11391,1794.9,1794.8,6.9298]
[1745759703914,9.6757,1795.0,1794.8,6.9298]
[1745759704218,9.6757,1795.0,1794.8,11.1878]
[1745759704413,3.2078,1795.3,1794.8,11.1878]
[1745759704616,3.2078,1795.3,1795.0,3.2078]
[1745759704918,9.0343,1795.5,1795.2,3.2078]
[1745759705117,9.0343,1795.5,1795.2,7.4658]
[1745759705321,9.0343,1795.5,1795.3,9.4603]
[1745759705520,9.0343,1795.5,1795.3,10.57393]
[1745759705817,9.0343,1795.5,1795.3,9.4603]
[1745759706120,9.0343,1795.5,1795.4,3.2078]
[1745759706312,9.0343,1795.5,1795.4,4.3214]
[1745759706511,9.0343,1795.5,1795.4,3.2078]
[1745759707315,1.1136,1795.4,1795.2,7.4658]
[1745759707509,8.9264,1795.3,1795.2,7.4658]
[1745759708921,8.9264,1795.3,1795.2,8.57952]
[1745759709321,8.9264,1795.3,1795.2,12.30152]
[1745759709827,8.9264,1795.3,1795.2,11.1878]
[1745759710120,8.9264,1795.3,1795.2,12.30152]
[1745759710522,4.8171,1795.7,1795.2,11.1878]
[1745759710721,10.68807,1795.6,1795.4,3.2078]
[1745759710924,10.68809,1795.6,1795.4,3.2078]
[1745759711117,10.68809,1795.6,1795.4,6.9298]
[1745759711518,9.5746,1795.6,1795.4,6.9298]
[1745759711920,9.5746,1795.6,1795.4,8.04337]
[1745759712121,9.5746,1795.6,1795.4,6.9298]
[1745759712317,9.5746,1795.6,1795.5,8.8642]
[1745759712819,9.5746,1795.6,1795.4,6.9298]
[1745759713015,1.11353,1795.5,1795.4,6.9298]
[1745759713430,10.68811,1795.6,1795.4,6.9298]
[1745759713629,9.5746,1795.6,1795.4,8.04339]
[1745759714026,3.2078,1796.1,1795.4,6.9298]
[1745759714352,8.9083,1795.7,1795.5,9.97769]
[1745759714528,8.9083,1795.7,1795.6,48.3688]
[1745759714733,12.8417,1796.1,1795.8,1.11334]
[1745759715026,2.78217,1796.6,1795.7,9.1939]
[1745759715027,9.4553,1796.0,1795.7,9.1939]
[1745759715234,9.4553,1796.0,1795.9,3.2078]
[1745759715531,9.4553,1796.0,1795.9,4.32109]
[1745759716233,9.541,1796.4,1796.1,1.11311]
[1745759716436,1.11304,1796.3,1796.1,4.32091]
[1745759716646,0.39427041,1796.7,1796.2,4.361]
[1745759716647,1.1128,1796.7,1796.2,4.361]
[1745759716848,1.11291,1796.5,1796.4,3.2078]
[1745759717035,1.11282,1796.7,1796.4,4.32075]
[1745759717345,1.11282,1796.7,1796.4,6.9298]
[1745759717543,9.4553,1796.6,1796.4,6.9298]
[1745759717746,9.4553,1796.6,1796.4,8.04276]
[1745759718239,9.4553,1796.6,1796.4,7.2073]
[1745759718638,9.4553,1796.6,1796.4,8.32026]
[1745759719146,10.56816,1796.6,1796.4,7.2073]
[1745759719645,9.4553,1796.6,1796.5,1.11291]
[1745759720041,9.4553,1796.6,1796.5,40.8]
[1745759720247,9.4553,1796.6,1796.5,44.522]
[1745759720447,10.56815,1796.6,1796.5,44.522]
[1745759720751,1.11291,1796.5,1796.4,0.2775]
[1745759720953,1.11316,1796.1,1796.0,4.36]
[1745759721147,1.11316,1796.1,1796.0,45.16]
[1745759721849,1.11316,1796.1,1796.0,40.8]
[1745759722142,13.8595,1796.2,1796.0,44.522]
[1745759722348,1.11301,1796.4,1796.1,3.2078]
[1745759722548,8.9999,1796.2,1796.1,8.67996]
[1745759722747,8.9999,1796.2,1796.1,7.5668]
[1745759723141,8.9999,1796.2,1796.1,8.67996]
[1745759723342,8.9999,1796.2,1796.1,7.5668]
[1745759723947,1.11299,1796.4,1796.1,8.67991]
[1745759724149,9.5254,1796.5,1796.2,9.5659]
[1745759724350,10.63833,1796.5,1796.2,10.67897]
[1745759724541,9.5254,1796.5,1796.2,9.5659]
[1745759724741,1.11304,1796.3,1796.2,9.5659]
[1745759725250,1.11303,1796.4,1796.2,13.2879]
[1745759725544,10.63844,1796.3,1796.2,13.2879]
[1745759726250,10.63844,1796.3,1796.2,9.5659]
[1745759726648,10.63844,1796.3,1796.2,12.7737]
[1745759727744,10.63844,1796.3,1796.2,3.2078]
[1745759727945,1.11316,1796.1,1796.0,40.8]
[1745759728450,9.32096,1796.1,1796.0,40.8]
[1745759728751,24.0438666,1796.1,1796.0,40.8]
[1745759729166,1.11329,1795.9,1795.8,0.87872]
[1745759729448,1.1138,1795.1,1795.0,4.359]
[1745759729646,1.11391,1794.9,1794.8,3.2078]
[1745759729849,9.5671,1795.0,1794.8,3.2078]
[1745759730046,10.68094,1795.0,1794.9,9.3967]
[1745759730243,1.11391,1794.9,1794.8,3.722]
[1745759730746,1.11391,1794.9,1794.8,44.522]
[1745759730956,1.11391,1794.9,1794.8,53.9187]
[1745759731270,9.5671,1795.0,1794.8,53.9187]
[1745759731451,9.5671,1795.0,1794.9,12.6045]
[1745759732053,9.5671,1795.0,1794.9,53.4045]
[1745759732349,1.11377,1795.2,1794.9,57.1265]
[1745759732545,1.11384,1795.0,1794.9,44.522]
[1745759732941,9.0954,1795.2,1794.9,44.522]
[1745759733143,10.20916,1795.2,1795.0,9.1311]
[1745759733352,1.11368,1795.3,1795.1,3.2078]
[1745759733554,1.11364,1795.4,1795.1,3.2078]
[1745759733852,8.9627,1795.5,1795.2,1.11369]
[1745759734048,1.1136,1795.4,1795.3,7.5678]
[1745759734454,8.9627,1795.5,1795.3,7.5678]
[1745759734652,10.07625,1795.5,1795.3,8.68146]
[1745759734952,10.07625,1795.5,1795.3,8.68144]
[1745759735154,10.07625,1795.5,1795.3,12.40344]
[1745759735349,1.11355,1795.5,1795.3,12.40344]
[1745759735551,1.1136,1795.4,1795.3,11.2898]
[1745759736051,1.1136,1795.4,1795.3,4.36]
[1745759736956,1.11355,1795.5,1795.3,5.47366]
[1745759737152,1.11355,1795.5,1795.3,9.19566]
[1745759737357,8.9827,1795.6,1795.3,11.2898]
[1745759737659,1.1136,1795.4,1795.3,11.2898]
[1745759738854,1.1136,1795.4,1795.3,8.082]
[1745759739049,1.1136,1795.4,1795.3,3.722]
[1745759739359,1.11384,1795.0,1794.9,48.3678]
[1745759739761,1.11384,1795.0,1794.9,40.8]
[1745759739946,1.11376,1795.2,1794.9,44.0078]
[1745759740155,9.2346,1795.1,1794.9,44.0078]
[1745759740361,9.2346,1795.1,1794.9,45.1217]
[1745759740564,9.2346,1795.1,1794.9,44.0078]
[1745759741057,9.8766,1795.3,1794.9,48.84365]
[1745759741257,9.2346,1795.2,1795.0,1.11384]
[1745759741457,3.2078,1795.5,1795.2,1.1137]
[1745759741658,13.55593,1795.5,1795.2,4.397]
[1745759742061,13.55593,1795.5,1795.2,8.119]
[1745759742655,9.2346,1795.5,1795.2,8.119]
[1745759742862,1.11362,1795.4,1795.2,8.119]
[1745759743066,8.9212,1795.3,1795.2,8.119]
[1745759743661,1.13352,1795.6,1795.2,8.119]
[1745759743861,3.2078,1797.7,1796.8,1.1127]
[1745759744053,3.2078,1797.2,1796.6,5.75782]
[1745759744252,3.2078,1797.2,1796.7,44.0078]
[1745759744253,1.11265,1797.0,1796.7,44.0078]
[1745759744456,1.11267,1796.9,1796.7,44.0078]
[1745759744763,1.11265,1797.0,1796.7,44.0078]
[1745759745063,5.0932,1796.9,1796.7,44.0078]
[1745759745264,6.20591,1796.9,1796.7,44.0078]
[1745759745561,1.11273,1796.8,1796.7,44.0078]
[1745759745758,10.9655,1796.9,1796.7,44.69985279]
[1745759746055,1.11273,1796.8,1796.7,44.0078]
[1745759746461,13.5748,1796.9,1796.7,44.0078]
[1745759746653,1.11273,1796.8,1796.7,44.0078]
[1745759746848,1.11273,1796.8,1796.7,40.8]
[1745759747049,10.92433,1796.8,1796.7,40.8]
[1745759747257,22.85413,1796.8,1796.7,40.8]
[1745759747465,1.11292,1796.5,1796.3,3.2078]
[1745759747762,9.8116,1796.4,1796.3,3.2078]
[1745759747954,9.8116,1796.4,1796.3,44.0078]
[1745759750057,9.8116,1796.4,1796.1,3.2078]
[1745759750262,1.1131,1796.2,1796.1,3.2078]
[1745759750461,11.44066,1796.3,1795.9,7.8508]
[1745759750665,9.7013,1796.2,1796.0,40.8]
[1745759750961,1.11316,1796.1,1796.0,40.8]
[1745759751465,1.11316,1796.1,1795.7,3.2078]
[1745759751466,5.0,1796.1,1795.7,3.2078]
[1745759751666,1.11335,1795.8,1795.7,3.2078]
[1745759751861,1.11335,1795.8,1795.7,44.0078]
[1745759752067,9.83535,1795.8,1795.7,44.0078]
[1745759752359,1.11341,1795.7,1795.6,0.02]
[1745759752565,20.09151,1795.7,1795.6,0.02]
[1745759752869,25.09151,1795.7,1795.6,0.02]
[1745759753067,23.81351,1795.7,1795.6,0.02]
[1745759753458,23.81351,1795.7,1795.6,40.82]
[1745759754153,28.91143973,1795.7,1795.6,0.02]
[1745759755462,28.81351,1795.7,1795.6,0.02]
[1745759755663,23.81351,1795.7,1795.6,0.02]
[1745759756260,20.09151,1795.7,1795.6,0.02]
[1745759757561,20.18943816,1795.7,1795.6,0.02]
[1745759757762,20.18944083,1795.7,1795.6,0.02]
[1745759758063,23.81351,1795.7,1795.6,0.02]
[1745759759173,1.1136,1795.4,1795.3,3.2078]
[1745759759466,2.88197151,1795.4,1795.1,3.2078]
[1745759759770,1.11372,1795.2,1795.1,44.0078]
[1745759759968,1.11372,1795.2,1794.9,3.2078]
[1745759759969,1.11384,1795.0,1794.9,3.2078]
[1745759760270,4.83584,1795.0,1794.9,3.2078]
[1745759760470,3.81989396,1795.0,1794.7,3.2078]
[1745759760658,1.11397,1794.8,1794.7,3.2078]
[1745759761158,1.11415,1794.5,1794.4,3.2078]
[1745759761465,1.11428,1794.3,1794.2,3.2078]
[1745759761668,12.9304,1794.4,1794.0,10.54814713]
[1745759761869,9.7226,1794.2,1794.0,7.34034713]
[1745759762065,1.1144,1794.1,1794.0,7.34034713]
[1745759762260,1.1144,1794.1,1793.8,3.2078]
[1745759762459,10.83707,1794.0,1793.7,14.0226]
[1745759762669,1.11453,1793.9,1793.8,3.2078]
[1745759762865,9.7226,1794.0,1793.8,3.2078]
[1745759763065,9.7226,1794.2,1793.9,9.3776]
[1745759763277,9.7226,1794.2,1794.1,3.2078]
[1745759763466,9.798,1794.5,1794.2,1.1143]
[1745759763682,18.9656,1794.5,1794.3,12.7953]
[1745759765470,3.2078,1794.8,1794.3,17.7953]
[1745759765769,3.2078,1794.8,1794.4,9.5875]
[1745759765971,9.1676,1794.7,1794.5,1.11413]
[1745759766169,9.1676,1794.7,1794.6,9.5875]
[1745759766767,3.2078,1795.0,1794.6,9.5875]
[1745759767073,12.7505,1795.0,1794.7,4.32183]
[1745759767469,3.2078,1795.0,1794.9,1.11391]
[1745759767667,1.11343,1795.7,1795.3,1.11362]
[1745759767897,0.09794984,1795.6,1795.2,3.2078]
[1745759768073,9.5427,1795.5,1795.3,40.8]
[1745759768877,1.1136,1795.4,1795.3,40.8]
[1745759769268,13.2647,1795.5,1795.3,40.8]
[1745759769779,1.1136,1795.4,1795.3,40.8]
[1745759769966,10.8114,1795.4,1795.3,40.8]
[1745759770369,10.90933243,1795.4,1795.3,40.8]
[1745759771078,14.63133243,1795.4,1795.3,40.8]
[1745759771374,14.63133243,1795.4,1795.0,12.3965]
[1745759771375,1.11368,1795.3,1795.0,12.3965]
[1745759771571,9.6978,1795.2,1795.0,12.3965]
[1745759771766,1.11378,1795.1,1795.0,40.8]
[1745759771966,1.114,1794.8,1794.6,12.4919]
[1745759772284,9.6978,1794.7,1794.6,12.4919]
[1745759772481,9.6978,1794.7,1794.6,53.2919]
[1745759773676,10.81183,1794.7,1794.6,53.2919]
[1745759774077,10.81183,1794.7,1794.6,44.0078]
[1745759775983,9.6978,1794.7,1794.6,44.0078]
[1745759776172,10.81183,1794.7,1794.6,44.0078]
[1745759777178,10.81183,1794.7,1794.6,3.2078]
[1745759777373,1.11415,1794.5,1794.4,12.78]
[1745759777574,9.6978,1794.7,1794.4,12.78]
[1745759777772,1.11415,1794.5,1794.4,12.78]
[1745759778175,1.11415,1794.5,1794.4,53.58]
[1745759778379,1.11413,1794.6,1794.4,53.58]
[1745759778579,9.6978,1794.7,1794.4,53.58]
[1745759778780,1.11415,1794.5,1794.4,53.58]
[1745759779478,9.6978,1794.7,1794.4,53.58]
[1745759779680,0.09793162,1794.6,1794.4,53.58]
[1745759779876,10.60145,1794.5,1794.4,44.0078]
[1745759780087,1.1144,1794.1,1794.0,4.9978]
[1745759780394,1.1144,1794.1,1794.0,14.3868]
[1745759780578,1.1144,1794.1,1794.0,50.189]
[1745759781983,10.2379,1794.1,1794.0,40.8]
[1745759782285,1.11459,1793.8,1793.7,7.8258]
[1745759782577,1.11459,1793.8,1793.7,3.2078]
[1745759782783,1.11459,1793.8,1793.7,44.0078]
[1745759782981,1.11478,1793.5,1793.4,12.8121]
[1745759783183,1.11485,1793.4,1793.2,7.8468]
[1745759783379,1.11482,1793.5,1793.3,9.6043]
[1745759783578,1.11484,1793.4,1793.3,50.4043]
[1745759784176,9.1235,1793.7,1793.3,50.4043]
[1745759784374,0.09786234,1793.6,1793.4,3.2078]
[1745759784576,1.11475,1793.6,1793.4,12.8524]
[1745759784797,4.9173,1794.0,1793.4,17.8524]
[1745759785002,3.2078,1794.1,1793.6,3.2078]
[1745759785186,3.2078,1794.1,1793.8,1.11459]
[1745759785187,0.09787147,1793.9,1793.8,1.11459]
[1745759785491,1.11447,1794.0,1793.7,15.7823]
[1745759785691,1.11442,1794.1,1793.9,3.2078]
[1745759785990,1.11439,1794.2,1793.9,3.2078]
[1745759786290,1.1144,1794.1,1794.0,9.6446]
[1745759786789,1.11447,1794.0,1793.9,3.2078]
[1745759786988,8.8653,1794.0,1793.9,3.2078]
[1745759787186,9.97977,1794.0,1793.9,3.2078]
[1745759789598,1.11459,1793.8,1793.7,3.2078]
[1745759791888,8.8653,1794.0,1793.5,3.2078]
[1745759792090,8.8653,1794.0,1793.3,46.0017]
[1745759792091,1.11484,1793.4,1793.3,58.1146]
[1745759792286,1.11484,1793.4,1793.3,52.9129]
[1745759792792,9.6783,1793.7,1793.3,59.02778]
[1745759793093,1.11472,1793.6,1793.5,3.2078]
[1745759794082,1.21253338,1793.6,1793.5,3.2078]
[1745759794284,1.11484,1793.4,1793.3,40.8]
[1745759794488,9.2297,1793.5,1793.3,44.0078]
[1745759794689,1.11484,1793.4,1793.3,44.0078]
[1745759795397,1.1149,1793.3,1793.2,0.02]
[1745759795688,10.3446,1793.3,1793.2,0.02]
[1745759796487,7.40669,1793.7,1793.2,0.02]
[1745759796688,1.1149,1793.3,1793.2,9.2236]
[1745759797381,9.2297,1793.6,1793.2,9.2236]
[1745759797591,1.11474,1793.6,1793.3,3.2078]
[1745759797789,1.11478,1793.5,1793.4,9.4166]
[1745759799895,13.6712,1793.7,1793.4,9.4166]
[1745759800098,1.11478,1793.5,1793.4,9.4166]
[1745759802797,1.11478,1793.5,1793.4,12.6244]
[1745759803596,1.11478,1793.5,1793.4,3.2078]
[1745759805093,1.1149,1793.3,1793.2,0.02]
[1745759805293,1.1149,1793.3,1793.2,3.2278]
[1745759806301,1.1149,1793.3,1793.2,12.4171]
[1745759807299,1.1149,1793.3,1793.2,3.2278]
[1745759808398,1.1149,1793.3,1793.2,12.4171]
[1745759808596,1.1149,1793.3,1793.2,3.2278]
[1745759808806,1.11502,1793.1,1793.0,3.2078]
[1745759809099,1.11521,1792.8,1792.7,3.2078]
[1745759809404,1.11521,1792.8,1792.7,53.7738]
[1745759809902,1.11521,1792.8,1792.7,44.0078]
[1745759811115,1.11521,1792.8,1792.7,40.8]
[1745759811296,12.342,1793.0,1792.5,17.9928]
[1745759811297,2.78789,1792.9,1792.5,17.9928]
[1745759811496,1.11534,1792.6,1792.5,17.9928]
[1745759811803,1.11534,1792.6,1792.5,58.7928]
[1745759811997,1.11534,1792.6,1792.5,53.7738]
[1745759812197,1.11534,1792.6,1792.5,57.4958]
[1745759812396,1.11534,1792.6,1792.5,3.722]
[1745759812596,19.78772997,1792.6,1792.5,3.722]
[1745759813104,1.1154,1792.5,1792.4,40.8]
[1745759813304,10.20258997,1792.5,1792.4,40.8]
[1745759813604,1.11546,1792.4,1792.3,3.2078]
[1745759814003,1.11546,1792.4,1792.3,44.0078]
[1745759814705,1.21325378,1792.4,1792.3,44.0078]
[1745759814909,1.11546,1792.4,1792.3,44.0078]
[1745759815103,1.11546,1792.4,1792.3,40.8]
[1745759815305,1.21324817,1792.4,1792.3,40.8]
[1745759815611,1.11571,1792.0,1791.9,7.6688]
[1745759815802,1.11571,1792.0,1791.9,3.2078]
[1745759816002,1.11571,1792.0,1791.9,44.0078]
[1745759816310,1.11571,1792.0,1791.9,47.7298]
[1745759818508,9.7538,1792.1,1791.9,52.7298]
[1745759818509,1.1157,1792.1,1791.9,52.7298]
[1745759818809,9.3467,1792.3,1792.0,13.8928]
[1745759819107,1.11558,1792.2,1792.1,3.2078]
[1745759819509,1.11558,1792.2,1792.1,8.4185]
[1745759820204,1.11556,1792.3,1792.1,8.4185]
[1745759820407,1.11556,1792.3,1792.2,9.4308]
[1745759821305,1.11556,1792.3,1792.2,13.1528]
[1745759821808,1.11556,1792.3,1792.2,3.722]
[1745759823911,1.11556,1792.3,1792.2,12.7442]
[1745759824303,9.5977,1792.7,1792.2,12.7442]
[1745759824500,4.7697,1793.1,1792.6,3.2078]
[1745759824701,1.11511,1793.0,1792.8,3.2078]
[1745759824913,1.11498,1793.2,1792.9,9.1015]
[1745759825103,1.11498,1793.2,1793.0,45.12288]
[1745759825310,1.11498,1793.2,1793.1,9.1015]
[1745759826007,1.11478,1793.5,1793.1,49.9015]
[1745759826207,9.5977,1793.5,1793.3,3.2078]
[1745759826411,10.7125,1793.5,1793.3,3.2078]
[1745759827112,7.6708,1793.8,1793.3,3.2078]
[1745759827301,9.3994,1793.7,1793.4,9.1143]
[1745759827604,9.615,1794.0,1793.5,3.2078]
[1745759827803,9.615,1794.0,1793.4,9.1143]
[1745759827804,3.2078,1794.2,1793.7,4.32244]
[1745759828108,9.3994,1794.1,1793.9,3.2078]
[1745759828304,9.3994,1794.1,1794.0,9.1143]
[1745759828803,10.51382,1794.1,1793.9,3.2078]
[1745759829005,9.3994,1794.1,1793.9,3.2078]
[1745759829399,9.3994,1794.1,1793.8,9.393]
[1745759829400,1.11453,1793.9,1793.8,0.2787]
[1745759829611,4.8549,1794.0,1793.8,0.2787]
[1745759829910,9.3994,1793.9,1793.8,0.2787]
[1745759830403,10.51393,1793.9,1793.8,0.2787]
[1745759831711,20.30663,1793.9,1793.8,0.2787]
[1745759832009,1.1147,1793.7,1793.3,9.2968]
[1745759832230,9.7541,1793.6,1793.3,12.5046]
[1745759832408,9.7541,1793.6,1793.4,10.41159]
[1745759833011,8.5147,1793.9,1793.4,9.2968]
[1745759833208,9.6073,1793.8,1793.6,1.11469]
[1745759833414,9.6073,1793.8,1793.7,1.11465]
[1745759833916,9.6073,1793.8,1793.6,9.6192]
[1745759834109,9.6073,1793.8,1793.5,3.4865]
[1745759834308,1.11467,1793.7,1793.5,3.4865]
[1745759834515,10.72201,1793.6,1793.5,3.4865]
[1745759834816,10.72201,1793.6,1793.5,0.2787]
[1745759835018,14.02784643,1793.6,1793.5,0.2787]
[1745759836018,12.91313643,1793.6,1793.5,0.2787]
[1745759836616,1.11465,1793.7,1793.5,0.2787]
[1745759836806,8.9363,1793.6,1793.5,0.2787]
[1745759837008,10.05101,1793.6,1793.5,0.2787]
[1745759837412,10.1490646,1793.6,1793.5,0.2787]
[1745759837603,18.3568646,1793.6,1793.5,0.2787]
[1745759838114,1.11496,1793.2,1793.1,40.8]
[1745759838310,1.1151,1793.0,1792.8,3.2078]
[1745759838709,1.11521,1792.8,1792.7,8.9147]
[1745759838913,1.11527,1792.7,1792.4,3.2078]
[1745759839116,10.05157,1792.7,1792.5,3.2078]
[1745759839308,1.11534,1792.6,1792.5,3.2078]
[1745759839809,1.1154,1792.5,1792.4,3.722]
[1745759840013,9.2217,1792.5,1792.4,3.722]
[1745759840310,9.2217,1792.5,1792.4,53.4032]
[1745759840519,1.11511,1793.0,1792.5,1.11538]
[1745759840721,1.11522,1792.8,1792.6,16.464]
[1745759840922,9.2217,1793.2,1792.6,16.464]
[1745759840923,10.33688,1792.9,1792.6,16.464]
[1745759841115,10.33688,1792.9,1792.7,8.8812]
[1745759841819,1.11521,1792.8,1792.7,8.8812]
[1745759842114,1.11525,1792.8,1792.6,7.5828]
[1745759842318,10.47427,1792.7,1792.6,16.8743]
[1745759843021,9.359,1792.7,1792.6,16.8743]
[1745759843722,1.11527,1792.7,1792.6,16.8743]
[1745759845326,9.359,1793.0,1792.6,17.98961]
[1745759845523,1.11515,1792.9,1792.8,3.2078]
[1745759845818,1.11505,1793.1,1792.8,3.2078]
[1745759846121,12.42477,1793.2,1792.8,3.2078]
[1745759846313,1.11515,1792.9,1792.8,6.9298]
[1745759846616,1.21327495,1792.9,1792.8,3.722]
[1745759846824,14.46027495,1792.9,1792.8,3.722]
[1745759847027,9.46027495,1792.9,1792.8,3.722]
[1745759847223,1.11525,1792.8,1792.5,3.2078]
[1745759847423,10.75257,1792.7,1792.6,9.5521]
[1745759847820,10.75257,1792.7,1792.5,3.2078]
[1745759848322,10.75258,1792.7,1792.5,12.7599]
[1745759848516,9.6373,1792.7,1792.5,12.7599]
[1745759849016,10.75257,1792.7,1792.5,12.7599]
[1745759849321,9.6373,1792.7,1792.5,17.59728]
[1745759849717,9.6373,1792.7,1792.6,1.11534]
[1745759849921,9.6373,1792.7,1792.5,21.2568]
[1745759850322,9.6373,1792.7,1792.5,22.37219]
[1745759850516,9.6373,1792.7,1792.6,1.11534]
[1745759850715,1.11509,1793.0,1792.6,1.11534]
[1745759850919,1.11509,1793.0,1792.7,13.3982]
[1745759850920,10.71969,1793.0,1792.7,13.3982]
[1745759851325,9.6046,1793.0,1792.7,13.3982]
[1745759851726,9.6046,1793.0,1792.7,14.51341]
[1745759852024,9.6046,1793.0,1792.7,13.3982]
[1745759852227,9.6046,1793.0,1792.7,17.1202]
[1745759852629,9.6046,1793.0,1792.7,18.23541]
[1745759852923,9.6046,1793.0,1792.7,17.1202]
[1745759853125,10.71969,1793.0,1792.9,3.2078]
[1745759853327,9.6046,1793.0,1792.9,3.2078]
[1745759854328,9.6046,1793.0,1792.9,6.9298]
[1745759854626,10.71969,1793.0,1792.9,6.9298]
[1745759854823,9.6046,1793.0,1792.9,6.9298]
[1745759856428,10.71969,1793.0,1792.9,6.9298]
[1745759858730,9.6046,1793.0,1792.9,6.9298]
[1745759858924,1.11503,1793.1,1792.9,6.9298]
[1745759859131,1.11503,1793.1,1793.0,9.3246]
[1745759859831,1.11509,1793.0,1792.9,6.9298]
[1745759862334,1.11509,1793.0,1792.9,3.722]
[1745759862632,1.21311646,1793.0,1792.9,3.722]
[1745759863232,1.11518,1792.9,1792.7,3.2078]
[1745759863427,10.1439,1793.1,1792.7,3.2078]
[1745759863620,1.11534,1792.6,1792.5,6.9298]
[1745759863824,1.11534,1792.6,1792.5,3.722]